bitfinex/quotes_ETHUSD_20250814
["timestamp","ask_amount","ask_price","bid_price","bid_amount"]
[1755157452792,20.43106077,4743.1,4743.0,0.001]
[1755157458800,14.341535,4743.1,4743.0,0.001]
[1755157458999,17.144335,4743.1,4743.0,0.001]
[1755157459315,17.06,4743.1,4743.0,0.001]
[1755157459705,7.06,4743.1,4743.0,0.001]
[1755157459913,7.5152,4743.1,4743.0,0.001]
[1755157460625,17.5152,4743.1,4743.0,0.001]
[1755157461820,13.802,4743.1,4743.0,0.001]
[1755157462022,17.059,4743.1,4743.0,0.001]
[1755157462225,17.059,4743.1,4743.0,0.3012]
[1755157462521,17.059,4743.1,4743.0,0.78]
[1755157462724,7.059,4743.1,4743.0,0.78]
[1755157464120,7.059,4743.1,4743.0,0.3012]
[1755157464318,7.059,4743.1,4743.0,0.001]
[1755157469005,7.059,4743.1,4743.0,2.10937022]
[1755157469305,7.059,4743.1,4743.0,5.56677022]
[1755157469726,7.059,4743.1,4743.0,3.001]
[1755157474508,7.059,4743.1,4743.0,5.10937022]
[1755157474745,3.802,4743.1,4743.0,5.83126027]
[1755157474947,3.802,4743.1,4743.0,6.28866027]
[1755157475113,7.056,4743.1,4743.0,6.28866027]
[1755157476147,7.056,4743.1,4743.0,5.83126027]
[1755157477569,3.802,4743.1,4743.0,6.39426027]
[1755157477946,3.802,4743.1,4743.0,7.02643427]
[1755157478249,3.21017879,4743.1,4743.0,7.02643427]
[1755157478757,3.21017879,4743.1,4743.0,8.91814183]
[1755157479554,3.21017879,4743.1,4743.0,7.02643427]
[1755157480129,0.93633618,4743.1,4743.0,7.02643427]
[1755157480330,0.93633618,4743.1,4743.0,8.91814183]
[1755157480636,0.002,4743.6,4743.5,2.10814799]
[1755157480834,0.002,4743.6,4743.5,2.12922946]
[1755157481049,0.002,4743.6,4743.5,5.69222946]
[1755157481246,0.002,4743.6,4743.5,5.67114799]
[1755157482449,0.002,4744.9,4744.5,2.10770365]
[1755157482763,0.002,4744.9,4744.5,5.67070365]
[1755157482967,0.002,4744.9,4744.5,5.21330365]
[1755157483165,0.002,4744.9,4744.5,5.29757265]
[1755157483941,3.254,4744.6,4744.5,5.29757265]
[1755157484156,3.254,4744.6,4744.5,6.03810788]
[1755157484538,3.689,4744.6,4744.5,5.95383888]
[1755157485354,3.254,4744.6,4744.5,5.95383888]
[1755157487956,0.002,4744.6,4744.5,5.95383888]
[1755157490352,0.002,4744.6,4744.5,6.58585288]
[1755157491369,0.002,4744.6,4744.5,6.57681724]
[1755157492164,0.002,4744.6,4744.5,5.94480324]
[1755157492870,0.002,4744.6,4744.5,6.57681724]
[1755157494866,0.002,4744.6,4744.5,6.78751724]
[1755157495065,0.002,4744.6,4744.5,6.57681724]
[1755157496874,0.4556,4744.6,4744.5,6.57681724]
[1755157497248,0.002,4744.6,4744.5,6.57681724]
[1755157497651,0.4556,4744.6,4744.5,6.57681724]
[1755157497974,0.4556,4744.6,4744.5,5.20426801]
[1755157497975,1.1406,4744.6,4744.5,5.20426801]
[1755157500745,1.1406,4744.6,4744.5,5.09866801]
[1755157500945,1.1406,4744.6,4744.5,3.0]
[1755157502173,1.1406,4744.6,4744.5,5.10770365]
[1755157502377,1.1406,4744.6,4744.5,3.0]
[1755157502884,0.002,4744.6,4744.5,5.10770365]
[1755157503548,0.4556,4744.6,4744.5,5.10770365]
[1755157503942,1.1406,4744.6,4744.5,5.10770365]
[1755157505681,0.002,4744.6,4744.5,5.83991175]
[1755157507594,0.002,4744.6,4744.5,6.29791175]
[1755157507762,0.002,4744.6,4744.5,5.83991175]
[1755157512089,1.1406,4744.6,4744.5,5.10770365]
[1755157512292,1.1406,4744.6,4744.5,3.0]
[1755157512589,1.1406,4744.6,4744.5,5.10770365]
[1755157513402,1.1406,4744.6,4744.5,3.0]
[1755157513770,1.1406,4744.6,4744.5,5.10770365]
[1755157514971,0.4556,4744.6,4744.5,5.10770365]
[1755157515177,0.002,4744.6,4744.5,5.84091174]
[1755157515591,0.4556,4744.6,4744.5,5.84091174]
[1755157515804,0.4556,4744.6,4744.5,5.10870365]
[1755157516378,1.1406,4744.6,4744.5,5.10870365]
[1755157517682,0.002,4744.6,4744.5,5.10870365]
[1755157518918,0.002,4744.6,4744.5,5.21430365]
[1755157519903,0.002,4744.6,4744.5,5.10870365]
[1755157520093,0.002,4744.6,4744.5,5.91444477]
[1755157525801,0.002,4744.6,4744.5,7.80615233]
[1755157526212,0.002,4744.6,4744.5,9.15844477]
[1755157526421,3.247,4745.1,4744.5,9.15844477]
[1755157526422,1e-08,4745.1,4745.0,2.10748155]
[1755157526591,1e-08,4745.1,4745.0,9.63347044]
[1755157526929,1e-08,4745.1,4745.0,9.61239563]
[1755157529602,1e-08,4745.1,4745.0,5.93459563]
[1755157529919,1e-08,4745.1,4745.0,9.17859563]
[1755157533508,1e-08,4745.1,4745.0,9.61239563]
[1755157533709,1e-08,4745.4,4745.3,2.10734832]
[1755157533899,1e-08,4745.4,4745.3,9.95611827]
[1755157534615,0.002,4746.1,4745.5,2.1072595]
[1755157534820,0.002,4746.1,4746.0,2.1070375]
[1755157535123,1e-08,4746.1,4746.0,10.34217375]
[1755157536133,1e-08,4746.1,4746.0,8.4546375]
[1755157536328,1e-08,4746.1,4746.0,9.57398467]
[1755157537630,1e-08,4746.1,4746.0,10.00778467]
[1755157537835,1e-08,4746.1,4746.0,9.73153085]
[1755157538201,1e-08,4746.1,4746.0,6.48953085]
[1755157538410,1e-08,4746.1,4746.0,9.73153085]
[1755157539010,1e-08,4746.1,4746.0,5.37324897]
[1755157539236,1.17590001,4746.1,4746.0,2.37018368]
[1755157539397,1.17590001,4746.1,4746.0,2.2126375]
[1755157539830,1.17590001,4746.1,4746.0,0.1056]
[1755157540011,1.17590001,4746.1,4745.7,2.21275925]
[1755157540335,1.1759,4746.0,4745.8,2.10711554]
[1755157540628,1.1759,4745.9,4745.8,2.10711554]
[1755157545203,1.29349,4745.9,4745.2,2.10738963]
[1755157545424,1.2815,4745.8,4745.5,2.10724752]
[1755157545622,1.1759,4745.7,4745.5,2.10724752]
[1755157545821,1.1759,4745.6,4745.5,2.10724752]
[1755157546423,1.1759,4745.6,4745.4,2.10730381]
[1755157546624,1.1759,4745.5,4745.4,2.10730381]
[1755157547412,0.4392,4745.5,4745.3,3.0]
[1755157547630,0.1056,4745.8,4745.7,2.1071707]
[1755157548131,0.1056,4745.8,4745.3,2.10734832]
[1755157548341,0.1056,4745.8,4745.6,2.10721445]
[1755157548342,0.7367,4745.7,4745.6,2.10721445]
[1755157548705,1.1759,4745.7,4745.6,2.10721445]
[1755157551304,0.1056,4745.8,4745.7,2.1071707]
[1755157551514,1e-08,4746.1,4746.0,2.1070375]
[1755157552032,0.43060001,4746.1,4746.0,2.1070375]
[1755157552334,1e-08,4746.1,4746.0,5.83901348]
[1755157552534,0.43060001,4746.1,4746.0,5.1070375]
[1755157553041,1e-08,4746.1,4746.0,5.2126375]
[1755157553713,0.43060001,4746.1,4746.0,5.2126375]
[1755157554325,1e-08,4746.1,4746.0,5.2126375]
[1755157558617,0.43060001,4746.1,4746.0,5.2126375]
[1755157559031,1.10950001,4746.1,4746.0,5.2126375]
[1755157559936,0.43060001,4746.1,4746.0,5.2126375]
[1755157560513,1e-08,4746.1,4746.0,5.2126375]
[1755157560806,0.43060001,4746.1,4746.0,5.2126375]
[1755157561622,1e-08,4746.1,4746.0,5.2126375]
[1755157565641,0.43060001,4746.1,4746.0,5.2126375]
[1755157566015,1e-08,4746.1,4746.0,5.2126375]
[1755157566343,1e-08,4746.1,4746.0,5.94461348]
[1755157567657,1e-08,4746.1,4746.0,9.18161348]
[1755157569543,1e-08,4746.1,4746.0,5.94461348]
[1755157570444,1.10950001,4746.1,4746.0,5.94461348]
[1755157570633,1.10950001,4746.1,4746.0,5.2126375]
[1755157574250,0.43060001,4746.1,4746.0,5.2126375]
[1755157574429,1.10950001,4746.1,4746.0,5.2126375]
[1755157574634,0.43060001,4746.1,4746.0,5.2126375]
[1755157574950,1e-08,4746.1,4746.0,5.2126375]
[1755157575442,0.43060001,4746.1,4746.0,5.2126375]
[1755157575657,1e-08,4746.1,4746.0,5.2126375]
[1755157577050,0.1056,4746.8,4746.7,2.10672677]
[1755157577625,0.4326,4747.1,4747.0,2.10659363]
[1755157578061,0.002,4747.1,4747.0,2.21219363]
[1755157578247,0.002,4747.1,4747.0,2.31675471]
[1755157582158,0.002,4747.1,4747.0,6.87106877]
[1755157583143,0.4745,4747.1,4747.0,6.87106877]
[1755157583349,1.1331,4747.1,4747.0,6.87106877]
[1755157583733,0.4745,4747.1,4747.0,6.87106877]
[1755157583937,1.1331,4747.1,4747.0,6.87106877]
[1755157584375,0.4745,4747.1,4747.0,6.87106877]
[1755157584559,0.4745,4747.1,4747.0,7.50272977]
[1755157584953,1.1331,4747.1,4747.0,7.50272977]
[1755157585342,1.1331,4747.1,4747.0,2.31675471]
[1755157586458,0.4745,4747.1,4747.0,2.31675471]
[1755157586665,1.1331,4747.1,4746.5,1.88371812]
[1755157586955,1.1331,4747.1,4745.8,2.10712527]
[1755157586956,0.1056,4746.6,4745.8,2.10712527]
[1755157587124,0.1056,4746.2,4745.8,2.10712527]
[1755157587331,1.1311,4746.1,4745.8,2.10712527]
[1755157587550,1.1311,4746.0,4745.9,2.12814849]
[1755157587755,1.1311,4746.0,4745.8,2.10711898]
[1755157587955,1.1311,4745.9,4745.8,2.10711898]
[1755157588749,1.1311,4745.9,4745.7,0.10564527]
[1755157588950,1.1311,4745.8,4745.7,2.10716976]
[1755157589463,1.1311,4745.8,4745.7,0.10745217]
[1755157589665,1.1311,4745.8,4745.5,0.1056]
[1755157589973,1.1311,4745.7,4745.4,2.10730391]
[1755157590279,4.3651,4745.6,4745.4,2.10730391]
[1755157590452,3.234,4745.6,4745.4,2.10730391]
[1755157590659,1.1311,4745.5,4745.4,2.10730391]
[1755157593155,1.1311,4745.5,4745.3,0.10835707]
[1755157593460,1.1311,4745.4,4745.3,2.21570539]
[1755157595284,1.1311,4745.4,4745.3,0.001]
[1755157595952,1.2367,4745.4,4745.3,0.001]
[1755157604588,3.34400391,4745.4,4745.3,0.001]
[1755157604760,3.36517782,4745.4,4745.3,0.001]
[1755157605689,11.25787391,4745.4,4745.3,0.001]
[1755157605859,11.2367,4745.4,4745.3,0.001]
[1755157606286,13.34400391,4745.4,4745.3,0.001]
[1755157606791,16.57700391,4745.4,4745.3,0.001]
[1755157624686,15.44590391,4745.4,4745.3,0.001]
[1755157625209,16.55530391,4745.4,4745.3,0.001]
[1755157630184,2.10743714,4745.1,4745.0,0.001]
[1755157630388,22.39417552,4745.1,4745.0,0.001]
[1755157630629,22.37300161,4745.1,4745.0,0.001]
[1755157630795,22.45731261,4745.1,4745.0,0.001]
[1755157631522,22.45731261,4745.1,4744.8,0.001]
[1755157631523,2.10752597,4744.9,4744.8,0.001]
[1755157631702,10.41469988,4744.9,4744.8,0.001]
[1755157632016,14.50292597,4744.9,4744.8,1e-08]
[1755157632724,24.50292597,4744.9,4744.8,1e-08]
[1755157633903,24.50292597,4744.9,4744.5,0.001]
[1755157634106,24.50292597,4744.9,4744.1,0.001]
[1755157634107,2.10803557,4743.8,4742.8,0.65150591]
[1755157634432,3.23,4743.7,4742.8,0.65150591]
[1755157634795,0.1056,4742.9,4742.8,0.65150591]
[1755157635021,3.3356,4742.9,4742.8,0.65150591]
[1755157635891,3.3356,4742.9,4742.8,0.18470591]
[1755157636129,3.3356,4742.9,4742.6,0.001]
[1755157637730,3.3356,4742.9,4742.7,0.1847]
[1755157637887,3.3356,4742.9,4742.6,0.001]
[1755157638695,10.0,4742.8,4742.6,0.001]
[1755157638916,3.23,4742.7,4742.6,0.001]
[1755157641731,10.0,4742.8,4742.6,0.001]
[1755157641918,10.0,4742.8,4742.7,3.6515]
[1755157642118,13.23,4742.8,4742.7,6.33630813]
[1755157642702,3.23,4742.8,4742.7,6.44190813]
[1755157643332,0.1056,4743.7,4743.6,2.10810355]
[1755157643631,3.3356,4743.7,4743.6,5.75960355]
[1755157644340,3.3356,4743.7,4743.6,3.6515]
[1755157644712,3.3356,4743.7,4743.6,3.0]
[1755157644903,3.3356,4743.7,4743.6,3.1847]
[1755157645319,3.3356,4743.7,4743.6,3.6272]
[1755157645524,3.229,4743.7,4743.6,3.6272]
[1755157645833,3.229,4743.7,4743.6,6.09802355]
[1755157646832,3.229,4743.7,4743.6,3.54742]
[1755157647037,0.1056,4743.9,4743.7,3.0]
[1755157647205,0.1056,4743.9,4743.3,3.1847]
[1755157647406,3.229,4743.8,4743.6,2.10810108]
[1755157647608,0.1056,4743.9,4743.6,2.10810108]
[1755157647809,3.229,4743.8,4743.6,2.10810108]
[1755157648031,0.1056,4743.9,4743.6,2.10810108]
[1755157648336,3.229,4743.7,4743.6,2.10810108]
[1755157648507,3.229,4743.7,4743.4,2.1081543]
[1755157648709,3.229,4743.7,4742.8,3.0]
[1755157648937,0.1056,4743.4,4742.9,0.60892227]
[1755157649106,3.229,4743.3,4742.9,0.60892227]
[1755157649307,3.229,4743.3,4742.6,2.21510397]
[1755157649538,3.229,4743.3,4742.6,0.1066]
[1755157649835,3.229,4743.3,4742.6,2.21514459]
[1755157650712,3.229,4743.3,4742.7,2.10850135]
[1755157651035,3.229,4743.3,4742.6,0.1066]
[1755157651244,0.1056,4743.1,4742.6,0.001]
[1755157651408,3.3346,4743.3,4742.7,0.6272]
[1755157651609,3.3346,4743.3,4742.8,2.29315913]
[1755157651809,3.3346,4743.3,4742.9,3.6272]
[1755157652121,3.3346,4743.3,4742.9,3.0]
[1755157652433,3.3346,4743.3,4742.6,0.1857]
[1755157652434,3.3346,4743.3,4742.7,2.1085035]
[1755157652615,3.3346,4743.3,4742.8,2.10845089]
[1755157653140,3.3346,4743.3,4742.9,0.6272]
[1755157653439,3.3346,4743.3,4742.8,2.10841743]
[1755157653939,3.3346,4743.3,4742.6,0.001]
[1755157654312,0.4682,4743.2,4742.6,0.001]
[1755157654508,0.65787391,4743.1,4742.6,0.001]
[1755157654718,0.1056,4742.7,4742.6,0.001]
[1755157654943,4.4385,4742.7,4742.6,0.001]
[1755157655550,3.8018,4742.7,4742.6,0.001]
[1755157656322,4.4385,4742.7,4742.6,0.001]
[1755157657659,14.4385,4742.7,4742.6,0.001]
[1755157660255,13.8018,4742.7,4742.6,0.001]
[1755157660657,13.3412,4742.7,4742.6,0.001]
[1755157660828,13.4468,4742.7,4742.6,0.001]
[1755157661535,15.55530359,4742.7,4742.6,0.001]
[1755157662154,15.29230359,4742.7,4742.6,0.001]
[1755157662461,13.1838,4742.7,4742.6,0.001]
[1755157663162,13.1838,4742.7,4742.1,0.001]
[1755157663163,4.2170961,4742.6,4740.1,0.15]
[1755157663375,2.10957112,4740.3,4740.1,0.15]
[1755157663591,2.11014982,4739.0,4737.7,0.664]
[1755157663770,5.84434982,4739.0,4737.7,0.664]
[1755157663956,6.48104982,4739.0,4737.7,0.664]
[1755157664152,6.48304982,4739.0,4736.7,0.664]
[1755157664489,6.48304982,4739.0,4737.0,0.664]
[1755157664677,16.48304982,4739.0,4737.0,0.664]
[1755157664974,16.48304982,4739.0,4734.7,2.11204758]
[1755157664975,3.0,4738.9,4736.2,0.664]
[1755157665174,3.94248222,4738.8,4736.1,0.1867]
[1755157665478,2.11078443,4737.6,4736.3,0.664]
[1755157665770,2.11078443,4737.6,4736.4,0.59621668]
[1755157665771,10.45999995,4737.5,4736.4,0.59621668]
[1755157665975,8.328,4737.5,4736.3,0.664]
[1755157666176,8.328,4737.5,4735.4,2.11174683]
[1755157666177,8.328,4737.5,4735.4,0.664]
[1755157666344,2.11101865,4737.1,4735.5,2.77570001]
[1755157666539,3.29117391,4737.0,4735.6,3.0]
[1755157666777,10.0,4736.9,4735.7,0.6851162]
[1755157667069,3.27,4736.8,4736.1,2.11141936]
[1755157667239,3.27,4736.8,4736.1,0.80737017]
[1755157667443,3.27,4736.8,4735.9,0.664]
[1755157668076,0.4682,4736.8,4735.6,0.664]
[1755157668276,3.276,4736.7,4735.6,0.8507]
[1755157668567,3.276,4736.6,4736.1,2.11143345]
[1755157668767,17.16882721,4737.5,4736.2,0.8507]
[1755157668957,3.277,4737.4,4736.2,1.14692182]
[1755157669160,3.277,4737.4,4736.2,0.8507]
[1755157669360,3.29817391,4737.4,4736.2,0.664]
[1755157669561,0.4682,4737.3,4735.4,0.10479973]
[1755157669761,3.287,4737.2,4735.4,0.664]
[1755157669961,0.4682,4737.1,4735.8,2.11155797]
[1755157670168,0.4682,4737.1,4735.8,0.664]
[1755157670362,0.02117391,4737.0,4735.8,0.664]
[1755157670570,3.286,4736.9,4735.9,3.0]
[1755157670866,10.0,4736.9,4735.8,0.664]
[1755157671066,3.287,4736.8,4736.0,2.11144777]
[1755157671476,10.0,4736.9,4735.7,0.1867]
[1755157671674,3.286,4736.7,4736.2,2.11136667]
[1755157671873,3.287,4736.6,4736.3,0.6364]
[1755157672173,3.287,4736.5,4735.9,3.0]
[1755157672374,3.287,4736.4,4736.1,2.11140049]
[1755157672676,10.46977391,4737.1,4736.2,0.6364]
[1755157672853,3.285,4737.0,4736.2,2.74777601]
[1755157673045,10.0,4737.1,4736.2,2.74777601]
[1755157673250,3.285,4737.0,4736.2,0.6364]
[1755157673477,0.1056,4736.3,4735.7,2.74798993]
[1755157673670,3.285,4736.2,4735.7,0.6364]
[1755157673981,0.1056,4736.0,4735.7,0.6364]
[1755157674272,0.1056,4736.0,4735.8,5.11155805]
[1755157674678,0.1056,4736.0,4735.8,5.29825805]
[1755157674978,10.0,4737.1,4735.8,5.29825805]
[1755157674979,10.0,4737.1,4735.8,5.85254824]
[1755157675151,0.1056,4736.6,4736.0,0.1056]
[1755157675352,3.284,4736.5,4736.4,2.11130816]
[1755157675697,3.284,4736.5,4736.4,5.74770816]
[1755157675995,3.284,4736.5,4736.4,3.0]
[1755157676151,10.6473,4737.8,4736.5,3.0]
[1755157676351,0.1056,4736.6,4736.0,5.11148648]
[1755157676562,3.284,4736.5,4736.0,2.11148648]
[1755157676767,0.1056,4736.6,4736.5,2.11126359]
[1755157676973,0.1056,4736.6,4736.5,5.74766359]
[1755157676974,3.3906,4736.6,4736.5,5.74766359]
[1755157677381,3.3906,4736.6,4736.5,3.6364]
[1755157678304,3.3906,4736.6,4736.5,3.0]
[1755157678994,3.8392,4736.6,4736.5,3.0]
[1755157679528,3.3886,4736.6,4736.5,3.0]
[1755157680489,3.8372,4736.6,4735.2,0.6364]
[1755157680666,4.4845,4736.6,4735.2,0.6364]
[1755157680865,0.4486,4736.5,4735.3,3.10447147]
[1755157681067,0.4486,4736.5,4735.3,0.10447147]
[1755157681269,0.1056,4735.9,4735.8,2.11154712]
[1755157681468,3.3876,4735.9,4735.8,2.11154712]
[1755157682281,0.4486,4736.5,4735.9,2.11150513]
[1755157682482,0.1056,4736.2,4736.0,0.02111486]
[1755157682793,3.0325,4736.1,4736.0,2.11148648]
[1755157682990,0.1056,4736.5,4736.2,2.11135474]
[1755157683166,3.282,4736.4,4736.2,0.6364]
[1755157683360,0.1056,4736.5,4736.4,2.11130816]
[1755157683674,10.0,4737.7,4737.2,2.11095106]
[1755157683863,10.0,4737.7,4737.2,0.02110951]
[1755157684058,10.1056,4737.7,4737.6,2.11077338]
[1755157684280,13.282,4737.7,4737.6,5.74717338]
[1755157684479,13.7306,4737.7,4737.6,3.0]
[1755157684681,3.3876,4737.7,4737.6,3.0]
[1755157685094,3.3906,4737.7,4737.6,3.0]
[1755157685391,0.1056,4737.7,4737.6,3.0]
[1755157685566,3.3896,4737.7,4737.6,3.0]
[1755157685784,0.5542,4737.7,4737.6,3.0]
[1755157685977,4.4855,4737.7,4736.6,2.11121466]
[1755157686185,0.1056,4737.1,4736.6,2.11121466]
[1755157686382,0.1056,4737.1,4736.1,5.11141115]
[1755157686383,3.7326,4737.0,4736.1,5.11141115]
[1755157686718,0.4486,4736.9,4735.4,0.6364]
[1755157686918,0.4486,4736.9,4735.8,2.11155912]
[1755157686919,10.0,4736.8,4735.8,2.11155912]
[1755157687219,10.0,4736.8,4735.4,0.6364]
[1755157687220,0.4486,4736.7,4735.4,0.6364]
[1755157687423,10.0,4736.8,4735.4,0.6364]
[1755157687424,10.0,4736.8,4735.6,2.11166483]
[1755157687583,0.1056,4736.5,4735.8,0.1056]
[1755157687782,3.284,4736.4,4736.3,2.11135274]
[1755157688419,3.285,4736.4,4736.2,2.11138759]
[1755157688618,3.285,4736.4,4736.1,2.1114419]
[1755157688796,0.4486,4736.4,4735.8,3.0]
[1755157688983,0.4486,4736.4,4735.9,2.11153107]
[1755157689185,3.7326,4736.3,4736.1,2.11143024]
[1755157689607,0.4486,4736.2,4735.6,0.1056]
[1755157689807,0.1056,4736.0,4735.7,2.11162024]
[1755157690006,0.1056,4736.0,4735.8,2.11156555]
[1755157690212,0.1056,4736.0,4735.9,5.11153107]
[1755157690391,0.4486,4736.7,4735.9,3.6364]
[1755157690590,3.283,4736.6,4736.3,2.11131845]
[1755157690810,0.1056,4736.2,4736.1,2.11140906]
[1755157691518,0.1056,4736.2,4736.1,2.74780906]
[1755157692495,0.1056,4736.2,4736.1,2.11140906]
[1755157693294,0.19459474,4736.2,4736.1,3.60597904]
[1755157693495,3.47559474,4736.2,4736.1,3.60597904]
[1755157694018,0.19459474,4736.2,4736.1,6.60597904]
[1755157694211,3.47559474,4736.2,4736.1,6.60597904]
[1755157694802,3.47559474,4736.2,4736.1,3.85816998]
[1755157695013,3.92319474,4736.2,4736.1,5.1114419]
[1755157695183,3.47459474,4736.2,4736.1,3.0]
[1755157695387,3.58019474,4736.2,4736.1,5.1114419]
[1755157695587,3.58119474,4736.2,4736.1,5.1114419]
[1755157696089,3.47559474,4736.2,4736.1,5.1114419]
[1755157696290,3.47559474,4736.2,4736.1,5.83373773]
[1755157697213,3.47567566,4736.2,4736.1,5.83373773]
[1755157697716,3.47567812,4736.2,4736.1,5.83373773]
[1755157698124,0.19467812,4736.2,4736.1,6.47013773]
[1755157698329,3.47567812,4736.2,4736.1,6.65683773]
[1755157698835,0.1056,4736.9,4736.8,2.11112987]
[1755157699042,3.58132523,4736.9,4736.8,2.11112987]
[1755157699317,3.47572523,4736.9,4736.8,5.83547462]
[1755157699537,0.19472523,4736.9,4736.8,5.83547462]
[1755157699692,3.47572523,4736.9,4736.8,6.47187462]
[1755157700025,0.1056,4737.8,4737.7,2.11072883]
[1755157700225,3.58134303,4737.8,4737.7,2.11072883]
[1755157700401,0.19474303,4737.8,4737.7,2.11072883]
[1755157700588,0.19474303,4737.8,4737.7,5.9511551]
[1755157700808,5.064,4738.6,4738.2,2.11049833]
[1755157701014,0.1056,4738.4,4738.2,2.11049833]
[1755157701213,0.19469336,4738.3,4738.0,2.1105635]
[1755157701412,0.66789336,4738.2,4738.0,2.1105635]
[1755157701722,3.47769336,4738.1,4738.0,2.1105635]
[1755157701921,3.95089336,4738.1,4738.0,2.1105635]
[1755157702125,3.47769336,4738.1,4738.0,2.1105635]
[1755157702329,3.283,4738.1,4738.0,2.1105635]
[1755157703444,5.064,4738.6,4738.5,2.11037248]
[1755157703636,9.62686284,4738.6,4738.0,0.91176921]
[1755157703810,0.1056,4738.4,4737.6,0.1056]
[1755157704010,1.30303675,4738.3,4737.4,2.11085331]
[1755157704218,0.1056,4737.7,4737.4,2.11085331]
[1755157704412,3.7552,4737.6,4737.4,2.11085331]
[1755157704613,3.7552,4737.6,4737.4,2.11085738]
[1755157705056,3.7552,4737.6,4737.4,2.11084826]
[1755157705257,0.1056,4737.7,4737.5,5.1108165]
[1755157705440,3.282,4737.6,4737.5,5.1108165]
[1755157705946,3.282,4737.6,4737.2,2.11092486]
[1755157705947,3.7552,4737.6,4737.2,2.11092486]
[1755157706246,1.0874,4737.5,4737.2,2.11094422]
[1755157706616,1.0874,4737.5,4737.3,2.11090119]
[1755157706617,0.6142,4737.5,4737.3,2.11090119]
[1755157706818,0.4732,4737.4,4737.3,2.11090119]
[1755157707817,3.279,4737.4,4737.3,2.11090119]
[1755157708017,0.1056,4737.7,4737.6,2.11077338]
[1755157708253,3.3846,4737.7,4737.6,2.11077338]
[1755157708436,3.3836,4737.7,4737.2,3.0]
[1755157708616,0.5788,4737.7,4737.5,2.11080692]
[1755157708820,3.278,4737.6,4737.5,2.11080692]
[1755157709057,0.002,4737.6,4737.5,2.11080692]
[1755157709224,3.28,4737.6,4737.5,2.11080692]
[1755157709562,3.279,4737.6,4737.5,2.11080692]
[1755157710319,0.002,4737.6,4737.5,2.11080692]
[1755157710530,3.279,4737.6,4737.5,2.11080692]
[1755157710738,3.7512,4737.6,4736.9,3.1056]
[1755157710961,3.7512,4737.6,4736.9,0.1056]
[1755157711118,3.7512,4737.6,4737.4,2.11085841]
[1755157711322,3.278,4737.6,4737.4,2.11085841]
[1755157711548,0.4732,4737.5,4737.4,2.11085841]
[1755157711848,1.0874,4737.5,4736.9,0.1056]
[1755157712044,1.0874,4737.5,4737.1,2.11097505]
[1755157712045,0.12677391,4737.4,4737.1,2.11097505]
[1755157712222,1.21417391,4737.4,4736.8,2.11112987]
[1755157712423,1.193,4737.4,4737.2,2.11094999]
[1755157712617,1.0874,4737.3,4737.0,2.11100271]
[1755157712841,3.275,4737.2,4737.1,2.11098877]
[1755157713046,3.7482,4737.2,4737.1,2.11098877]
[1755157714034,3.7482,4737.2,4736.9,2.11104779]
[1755157714234,0.4732,4737.1,4737.0,2.11103957]
[1755157714952,0.4732,4737.1,4736.8,2.11109412]
[1755157715170,0.6142,4737.1,4737.0,2.11104074]
[1755157715334,0.6142,4737.1,4736.2,3.0]
[1755157715534,0.1056,4737.0,4736.5,2.11124897]
[1755157715748,3.274,4736.9,4736.8,2.11112987]
[1755157717135,3.7472,4736.9,4736.8,2.11112987]
[1755157717350,3.7472,4736.9,4736.6,2.11118786]
[1755157717641,3.7472,4736.9,4736.7,2.11117444]
[1755157717642,0.4732,4736.8,4736.7,2.11117444]
[1755157717843,0.4732,4736.8,4736.6,2.11120981]
[1755157718150,0.4732,4736.7,4736.6,2.11120981]
[1755157719954,0.4732,4736.7,4736.5,2.11125691]
[1755157720255,3.7432,4736.6,4736.3,0.1056]
[1755157720455,3.7432,4736.6,4736.1,0.72329583]
[1755157720456,3.27,4736.5,4736.1,0.001]
[1755157720670,3.27,4736.5,4736.1,2.1124338]
[1755157720956,0.4732,4736.4,4736.3,2.11135274]
[1755157721338,3.27,4736.5,4736.3,2.11135274]
[1755157721538,3.27,4736.5,4736.1,0.001]
[1755157721739,0.4732,4736.4,4736.1,2.11243871]
[1755157722260,0.4732,4736.4,4736.1,0.001]
[1755157722436,0.4732,4736.3,4736.1,2.1124088]
[1755157722766,3.27,4736.2,4736.1,2.1124088]
[1755157722968,3.7432,4736.2,4736.1,0.001]
[1755157723134,4.30145253,4736.2,4736.1,0.001]
[1755157723870,3.21405253,4736.2,4736.1,0.001]
[1755157724171,3.271,4736.2,4736.1,5.1124419]
[1755157724864,3.271,4736.2,4736.1,2.1124419]
[1755157725249,3.271,4736.2,4736.1,0.001]
[1755157725572,4.3584,4736.2,4736.1,0.001]
[1755157727564,3.7442,4736.2,4736.1,0.001]
[1755157729641,4.3584,4736.2,4736.1,0.001]
[1755157734570,4.3631,4736.2,4736.1,0.001]
[1755157734748,4.3561,4736.2,4736.1,0.001]
[1755157738384,3.7372,4736.2,4736.1,0.001]
[1755157739265,4.3561,4736.2,4736.1,0.001]
[1755157739682,3.7372,4736.2,4736.1,0.001]
[1755157740487,4.3561,4736.2,4736.1,0.001]
[1755157742482,3.7372,4736.2,4736.1,0.001]
[1755157743960,0.4732,4736.2,4736.1,0.001]
[1755157744165,3.7312,4736.2,4736.1,0.001]
[1755157744793,4.3501,4736.2,4736.1,0.001]
[1755157745477,3.7312,4736.2,4736.1,0.001]
[1755157746695,4.3501,4736.2,4736.1,0.001]
[1755157751301,6.46149732,4736.2,4736.1,0.001]
[1755157751803,16.46349732,4736.2,4736.1,0.001]
[1755157757804,13.26,4736.2,4736.1,0.001]
[1755157757977,13.7022,4736.2,4736.1,0.001]
[1755157758605,13.253,4736.2,4736.1,0.001]